Cogmind - Beta 15 @@@ ROGUE MODE // 2025.08.31 @ 10:57:51 Player: beans Result: Destroyed by G-34 Mercenary with Small Laser Performance ------------- Evolutions (1) 500 Regions Visited (3) 600 Robots Destroyed (51) 255 Value Destroyed (1060) 1060 Prototype IDs (1) 20 Alien Tech Used (0) 0 Bonus (0) 0 TOTAL SCORE: 2435 Bonus ------- None Cogmind --------- Core Integrity 0/400 Matter 239/300 Energy 251/265 System Corruption 0% Temperature Cool (6) Movement Core (200) Ox3 Location -9/Storage Parts ------- > --- POWER (1) -------- Improved Ion Engine > --- PROPULSION (2) --- (None) > --- UTILITY (4) ------ Heat Sink Terrain Scan Processor Hacking Suite > --- WEAPON (2) ------- Heavy Assault Rifle Plasma Cutter > --- INVENTORY (5) ---- Ion Engine Tractor Beam Grenade Launcher Peak State ------------ > --- POWER ------------ Improved Ion Engine > --- PROPULSION ------- (None) > --- UTILITY ---------- Heat Sink Terrain Scan Processor Hacking Suite > --- WEAPON ----------- Particle Gun Plasma Cutter > --- INVENTORY -------- Ion Engine Tractor Beam Heavy Assault Rifle [Rating: 12] Favorites ----------- Power Ion Engine Engine Ion Engine Propulsion Light Treads Treads Light Treads Hover Unit Hover Unit Flight Unit Flight Unit Utility Terrain Scan Processor Device Terrain Scanner Storage Small Storage Unit Processor Terrain Scan Processor Hackware Hacking Suite Weapon Assault Rifle Energy Gun Particle Gun Ballistic Gun Assault Rifle Special Weapon Plasma Cutter Build | -11 -10 -9 -9 ------- Run | Yrd Mat Mat Sto Slots Evolved 2 | . . 2 . Power . | . . . . Propulsion . | . . . . Utility 2 | . . 2 . Weapon . | . . . . Parts Attached 22 | 5 3 12 2 Power 2 | 1 . . 1 Engine 2 | 1 . . 1 Core . | . . . . Reactor . | . . . . Propulsion 5 | 2 . 3 . Treads 2 | 2 . . . Leg . | . . . . Wheel . | . . . . Hover 1 | . . 1 . Flight 2 | . . 2 . Utility 6 | . 3 3 . Device 2 | . 1 1 . Storage 1 | . 1 . . Processor 2 | . 1 1 . Hackware 1 | . . 1 . Protection . | . . . . Artifact . | . . . . Weapon 9 | 2 . 6 1 Energy Gun 2 | . . 2 . Energy Cannon . | . . . . Ballistic Gun 6 | 2 . 4 . Ballistic Cannon . | . . . . Launcher . | . . . . Special Weapon 1 | . . . 1 Impact Weapon . | . . . . Slashing Weapon . | . . . . Piercing Weapon . | . . . . Special Melee Weapon . | . . . . Unidentified Prototypes 1 | . . 1 . Parts Lost 11 | . 4 7 . Power . | . . . . Propulsion 4 | . 2 2 . Utility 2 | . . 2 . Weapon 5 | . 2 3 . Highest Loss Streak 4 | . 2 4 . To Critical Strikes . | . . . . Average Backups 2 | . 1 3 3 Power . | . . 1 1 Propulsion . | . . . . Utility . | . . . 1 Weapon . | . . . . Tool/Special . | . . . . Unused Backups 3 | . . 1 2 Power . | . . . . Propulsion . | . . . . Utility 1 | . . . 1 Weapon 2 | . . 1 1 Tool/Special . | . . . . Average Slot Usage (%) 58 | . 69 39 59 Engine 6 | . 10 . 4 Treads 5 | . 9 . . Hover 1 | . . 3 . Device 4 | . 3 4 11 Storage 8 | . 12 3 . Processor 8 | . 6 11 11 Hackware 1 | . . 1 11 Energy Gun 2 | . . 3 10 Ballistic Gun 18 | . 25 9 8 Peak Build Rating 12 | 5 8 10 12 Average Rating 6 | 3 5 6 10 On Entrance 4 | . 5 2 10 Naked Turns . | . . . . Heaviest Build 14 | 9 14 12 14 Greatest Support 40 | 40 40 8 3 Greatest Overweight (x) 4 | . 4 3 4 Average Overweight (x) 1 | . 2 . 2 Largest Inventory Capacity 8 | 5 8 8 5 Average Capacity 6 | 5 7 6 5 Most Carried 5 | 2 5 5 5 Average Carried 2 | . 1 3 3 Final Capacity 8 | 5 8 5 5 Final Carried 3 | . 3 3 3 Class Distribution -------------------- 88% | Mutant 11% | Scavenger-Mutant Dominant Class ---------------- Mutant | -10/Materials Mutant | -9/Materials Scavenger-Mutant | -9/Storage Resources | -11 -10 -9 -9 ----------- Run | Yrd Mat Mat Sto Matter Collected 1093 | 240 387 392 74 Remotely . | . . . . Salvage Created 1566 | . 578 794 194 Parts 118 | . 44 62 12 Haulers Intercepted 2 | . . 2 . Recyclers Shooed 2 | . 1 . 1 Parts Field Recycled . | . . . . Retrieved Matter . | . . . . Parts Self-Destructed . | . . . . Prevented . | . . . . Kills | -11 -10 -9 -9 ------- Run | Yrd Mat Mat Sto Combat Hostiles Destroyed 30 | . 11 15 4 Guns 28 | . 11 14 3 Cannons 1 | . . . 1 Classes Destroyed 10 | . 6 3 1 Worker 8 | . 5 2 1 Builder 3 | . 3 . . Hauler 2 | . . 2 . Recycler 2 | . 1 1 . Operator 2 | . . 2 . Watcher 4 | . 2 2 . Swarmer 9 | . 5 4 . Grunt 15 | . 6 6 3 Duelist 1 | . . . 1 Sentry 5 | . . 5 . Best Kill Streak 10 | . 10 10 2 Combat Bots Only 5 | . 5 5 2 Max Kills in Single Turn 2 | . 2 1 1 Gunslinging . | . . . . Exploded . | . . . . Melee . | . . . . Uniques/NPCs Destroyed . | . . . . Combat | -11 -10 -9 -9 -------- Run | Yrd Mat Mat Sto Hostile Shots Fired 205 | . 93 92 20 Missed 58 | . 22 32 4 Hits 147 | . 71 60 16 Melee 2 | . . . 2 Projectile 145 | . 71 60 14 Critical Strikes 3 | . . 1 2 Damage Taken 1876 | . 865 767 244 Core 566 | . 159 285 122 Absorbed by Shields . | . . . . Core Remaining (%) 68 | 100 36 . . Volleys Fired 141 | . 58 61 22 Largest 2 | . 2 2 2 Hottest 88 | . 40 88 88 Shots Fired 256 | . 114 111 31 Gun 255 | . 114 111 30 Cannon . | . . . . Launcher . | . . . . Special 1 | . . . 1 Kinetic 210 | . 114 79 17 Thermal 46 | . . 32 14 Explosive . | . . . . Electromagnetic . | . . . . Robot Hit Streak 16 | . 9 16 5 Robot Miss Streak 12 | . 3 12 5 Penetration Max . | . . . . Secondary Targets 4 | . 1 3 . Max Gunslinging Chain 1 | . 1 1 . Shots Hit Robots 145 | . 62 71 12 Core Hits 77 | . 31 38 8 Critical Kills 1 | . . 1 . Critical Parts Destroyed 1 | . 1 . . Critical Strikes 7 | . 1 6 . Burn 5 | . . 5 . Destroy 2 | . 1 1 . Melee Attacks . | . . . . Impact . | . . . . Slashing . | . . . . Piercing . | . . . . Sneak Attacks . | . . . . Combat Hostiles . | . . . . Follow-up Attacks . | . . . . Damage Inflicted 2165 | . 844 1113 208 Guns 2153 | . 844 1113 196 Cannons . | . . . . Explosions . | . . . . Melee . | . . . . Ramming . | . . . . Kinetic 1762 | . 844 782 136 Thermal 403 | . . 331 72 Explosive . | . . . . Electromagnetic . | . . . . Impact . | . . . . Slashing . | . . . . Piercing . | . . . . Highest Corruption . | . . . . Average Corruption . | . . . . Corruption Purged . | . . . . Corruption Blocked . | . . . . Overload Shots . | . . . . Overflow Damage . | . . . . Projectiles . | . . . . Explosions . | . . . . Melee . | . . . . Knockbacks . | . . . . Impact . | . . . . Kinetic . | . . . . Secondary . | . . . . Self-Inflicted Damage . | . . . . Shots . | . . . . Rammed . | . . . . Targets Rammed . | . . . . Kicked . | . . . . Crushed . | . . . . Highest Temperature 44 | . 5 44 6 Average Temperature 11 | . 3 14 3 Received Heat Transfer 561 | . 291 183 87 Siege Activations . | . . . . Martial Activations . | . . . . Shielding Activations . | . . . . Robots Disrupted . | . . . . Combat Hostiles . | . . . . Robots Corrupted . | . . . . Combat Hostiles . | . . . . Parts Fried . | . . . . Impact Corruptions . | . . . . Robots Melted 1 | . . 1 . Combat Hostiles 1 | . . 1 . Parts Melted 2 | . . 2 . Heat Transferred 1295 | . . 1110 185 Parts Sabotaged . | . . . . Parts Stolen . | . . . . Parts Stripped . | . . . . Power Chain Reactions . | . . . . Alert | -11 -10 -9 -9 ------- Run | Yrd Mat Mat Sto Maximum Alert Level 1 | . 1 1 . Low Security (%) 76 | 100 86 48 100 Level 1 23 | . 13 51 . Level 2 . | . . . . Level 3 . | . . . . Level 4 . | . . . . Level 5 . | . . . . High Security . | . . . . Max Security . | . . . . Peak Influence 333 | . 223 333 182 Initial 131 | . . 42 131 Average 136 | . 137 153 130 Influence Increases 1157 | . 471 535 151 Destroy 0b10 Robot/C 600 | . 220 300 80 Destroy 0b10 Robot/NC 105 | . 55 45 5 Destroy Leader 152 | . 54 78 20 Successful Hack 14 | . 7 7 . Disable Machine 60 | . . 15 45 Destroy Structure 1 | . . . 1 Lose Combat Pursuer 225 | . 135 90 . Influence Decreases 975 | . 368 327 280 Entered New Map 241 | . . 61 180 Time Decay 634 | . 328 206 100 Lost Part 100 | . 40 60 . Squads Dispatched 5 | . 2 2 1 Investigation 1 | . 1 . . Extermination . | . . . . Reinforcement 4 | . 1 2 1 Assault . | . . . . Garrison . | . . . . Intercept . | . . . . Searches Triggered . | . . . . Construction Impeded . | . . . . Haulers Reinforced . | . . . . Active Scanning Responses . | . . . . Cargo Convoy Interrupts . | . . . . Stealth | -11 -10 -9 -9 --------- Run | Yrd Mat Mat Sto Distress Signals 5 | . 2 3 . Communications Jammed . | . . . . Distress Signals . | . . . . Times Spotted 65 | . 33 25 7 Peak Tracking Total 11 | . 9 11 3 Tactical Retreats 10 | . 7 3 . Traps | -11 -10 -9 -9 ------- Run | Yrd Mat Mat Sto Traps Triggered 4 | . 3 1 . Indirectly . | . . . . Trap Hack Attempts . | . . . . Triggered . | . . . . Disarmed . | . . . . Reprogrammed . | . . . . Reused . | . . . . Traps Extracted . | . . . . Installed . | . . . . Triggered . | . . . . Machines | -11 -10 -9 -9 ---------- Run | Yrd Mat Mat Sto Machines Disabled 4 | . . 1 3 Max in Single Turn 1 | . . 1 1 Machines Repaired . | . . . . Machines Dismantled 1 | . . . 1 Machines Sabotaged . | . . . . Overloaded Fab Kills . | . . . . Hacking | -11 -10 -9 -9 --------- Run | Yrd Mat Mat Sto Machines Accessed 3 | . 1 1 1 Terminals 3 | . 1 1 1 Fabricators . | . . . . Repair Stations . | . . . . Recycling Units . | . . . . Scanalyzers . | . . . . Garrison Access . | . . . . Total Hacks 3 | . 1 1 1 Successful 2 | . 1 1 . Failed 1 | . . . 1 Catastrophic . | . . . . Database Lockouts . | . . . . Manual 3 | . 1 1 1 Terminals 3 | . 1 1 1 Fabricators . | . . . . Repair Stations . | . . . . Recycling Units . | . . . . Scanalyzers . | . . . . Garrison Access . | . . . . Terminal Hacks 2 | . 1 1 . Part Schematic 2 | . 1 1 . Fabricator Hacks . | . . . . Repair Station Hacks . | . . . . Recycling Unit Hacks . | . . . . Scanalyzer . | . . . . Garrison Access Hacks . | . . . . Unauthorized Hacks . | . . . . Terminals . | . . . . Fabricators . | . . . . Repair Stations . | . . . . Recycling Units . | . . . . Scanalyzers . | . . . . Garrison Access . | . . . . Data Cores Recovered . | . . . . Used . | . . . . Hacking Detections 1 | . . 1 . Full Trace Events . | . . . . Feedback Events . | . . . . Feedback Blocked . | . . . . Robot Schematics Acquired . | . . . . Robots Built . | . . . . Authchips . | . . . . Time . | . . . . Total Robot Build Rating . | . . . . Part Schematics Acquired 2 | . 1 1 . Parts Built . | . . . . Authchips . | . . . . Time . | . . . . Total Part Build Rating . | . . . . Parts Repaired . | . . . . Time . | . . . . Parts Recycled . | . . . . Recycled Matter . | . . . . Retrieved Matter . | . . . . Retrieved Components . | . . . . Parts Scanalyzed . | . . . . Part Schematics Acquired . | . . . . Parts Damaged . | . . . . Bothacking | -11 -10 -9 -9 ------------ Run | Yrd Mat Mat Sto Used RIF Installer . | . . . . Robots Hacked . | . . . . Non-combat . | . . . . Combat . | . . . . Robot Hacks Applied . | . . . . Relay Couplers Released . | . . . . Fabnet Peak Effective % . | . . . . Robots Rewired . | . . . . Allies Hacked . | . . . . Hacks Repelled . | . . . . Allies | -11 -10 -9 -9 -------- Run | Yrd Mat Mat Sto Total Allies . | . . . . Largest Group . | . . . . Highest-Rated Group . | . . . . Highest-Rated Ally . | . . . . Total Orders . | . . . . Ally Attacks . | . . . . Total Damage . | . . . . Kills . | . . . . Allies Corrupted . | . . . . Allies Melted . | . . . . Intel | -11 -10 -9 -9 ------- Run | Yrd Mat Mat Sto Active Infowar (turns) 408 | . 217 191 . Terrain 408 | . 217 191 . Robot Analysis Total . | . . . . Derelict Logs Recovered . | . . . . Drone Launches . | . . . . Drone Recoveries . | . . . . Exploration | -11 -10 -9 -9 ------------- Run | Yrd Mat Mat Sto Turns Passed 1764 | 58 944 550 212 Spaces Moved 812 | 35 386 309 82 Core 449 | 6 261 100 82 Treads 154 | 29 125 . . Legs . | . . . . Wheels . | . . . . Hover 140 | . . 140 . Flight 69 | . . 69 . Fastest Speed 37 | 50 100 37 100 Average Speed 139 | 141 190 66 171 Slowest Speed 250 | 160 250 200 250 Overloaded Moves . | . . . . Propulsion Burnouts . | . . . . Robots Hopped . | . . . . Potential Cave-ins . | . . . . Cave-ins Triggered . | . . . . Exploration Rate (%) 27 | 3 54 34 17 Regions Visited 3 Branch Regions 1 Pre-discovered Areas . | . . . . Known Exits Taken . | . . . . Unknown Exits Taken 3 | 1 1 1 . Scrap Searched . | . . . . Spaces Dug . | . . . . Terrain Destroyed . | . . . . Melee . | . . . . Projectile . | . . . . AOE . | . . . . Terrain Rammed . | . . . . Walls Destroyed . | . . . . Machines Disabled . | . . . . Actions | -11 -10 -9 -9 --------- Run | Yrd Mat Mat Sto Total 1185 | 44 482 544 115 Wait 167 | . 26 141 . Move 809 | 34 385 308 82 Hop . | . . . . Pick Up 29 | 5 8 14 2 Fast Attach 1 | . . 1 . Attach 26 | 5 5 13 3 Detach 2 | . . 1 1 Swap 3 | . . 2 1 Drop 3 | . . 3 . Fire 141 | . 58 61 22 Melee . | . . . . Ram . | . . . . Kick . | . . . . Crush . | . . . . Escape Stasis . | . . . . Rewire . | . . . . Trap . | . . . . Miscellaneous 4 | . . . 4 Route ------- -11/Scrapyard -10/Materials (discovered 3 exits: *Mat / [*Min] / [*Sub]) -9/Materials (discovered 2 exits: [*Min] / *Sto) -9/Storage History --------- Turn | Location | Event 12 | -11/Scrapyard | Discovered new exit (range 16) 59 | -11/Scrapyard | Entered Materials 301 | -10/Materials | Build established: Mutant 404 | -10/Materials | Discovered new exit (range 6) 474 | -10/Materials | Discovered new exit (range 14) 587 | -10/Materials | Discovered new exit (range 14) 859 | -10/Materials | Derelicts attacked the area 965 | -10/Materials | Core integrity fell below 50% 1003 | -10/Materials | Entered another Materials area 1003 | -9/Materials | Evolved 2 slots: Utility x2 1352 | -9/Materials | Discovered new exit (range 9) 1446 | -9/Materials | Core integrity fell below 50% 1502 | -9/Materials | Lost 4 parts (1n3w) 1514 | -9/Materials | Discovered new exit (range 15) 1553 | -9/Materials | Entered Storage 1757 | -9/Storage | Core integrity fell below 20% 1765 | -9/Storage | Destroyed by G-34 Mercenary with Small Laser Last Messages --------------- R-06 Scavenger collects Wheel. R-06 Scavenger collects Sml. Matter Pod. Dismantling Storage Shell with Plasma Cutter. Storage Shell dismantled. Acquired Imp. Ion Engine. Acquired Grenade Launcher. Extracted 1 energy. Extracted 9 energy. G-34 Mercenary destroyed. K-01 Serf collects debris. Acquired 31 matter. R-06 Scavenger collects Sml. Laser. R-06 Scavenger collects Heat Sink. Acquired 43 matter. Critical hit (Burn: +37). Component Storage disabled. Particle Gun severed. K-01 Serf collects debris. L-31 Rogue destroyed. Map ----- +----------------------------------------------------+ | | | | | | | | | | | | | | | | | ?????????????????????????????????????????????????? | | ?????????????????????????????????????????????????? | | ???????????????????????????######################? | | ???????????????????????????# #? | | ???????????????????????????# #? | | ???????????????????????????# #? | | ???????????????????????????# ###########+####### | | ???????????????????????????# # ??????# # | | ???????????????????????????# # ?""""?# """ # | | ????????????????????""?????# # ?"!["?# """ # | | ???????????????????#"T"##### # """!!"?# """ # | | ??????????????????? # + ="""?# # | | ???????????????????""" """ # # !"???# """ # | | ???????????????????""" """ # # """ # """ # | | ???????????????????""" """ + + # """ # | | ?????????????????# """ """ # # # # | | ?????????????????# """ " " # #############" "### | | ?????????????????# a!@ # #???????????#####?? | | ????????????????# ]Y *g=% # #?????????????????? | | ????????????????######+##### #?????????????????? | | ????????????????????# ??? % %#?????????????????? | | ????????????????????# ???### +?????????????????? | | ????????????????????/??????# #?????????????????? | | ??????????????????? ???????# #?????????????????? | | ?????????????????? ????????# #?????????????????? | | ???????????????????????????# #?????????????????? | | ???????????????????????????##+##?????????????????? | | ?????????????????????????????????????????????????? | | ?????????????????????????????????????????????????? | | ?????????????????????????????????????????????????? | | ?????????????????????????????????????????????????? | | ?????????????????????????????????????????????????? | | ?????????????????????????????????????????????????? | | ?????????????????????????????????????????????????? | | ?????????????????????????????????????????????????? | | ?????????????????????????????????????????????????? | | ?????????????????????????????????????????????????? | | ?????????????????????????????????????????????????? | | ?????????????????????????????????????????????????? | | ?????????????????????????????????????????????????? | | ?????????????????????????????????????????????????? | | ?????????????????????????????????????????????????? | +----------------------------------------------------+ Best States ------------- Heat Dissipation 38 Energy Generation 12 Energy Capacity 265 Matter Stores 300 Matter Capacity 300 Sight Range 16 Terrain Scan Range 14 Terrain Scan Density 85 Evasion (%) 62 Recoil Reduction 2 Offensive Hacking 10 Item Schematics ----------------- Hcp. Matter Pod | -10/Materials | Hacked Autogun | -9/Materials | Hacked Robot Schematics ------------------ None Fabricated ------------ Nothing Repaired ---------- Nothing Alien Tech Used ----------------- None Achievements -------------- None Challenges ------------ None Game ------ Seed DefenseSingularityFirepult Manual? 0 Play Time 00:12:56 Cumulative 117.4 hours Start 2025.08.31 @ 10:46:27 End 2025.08.31 @ 10:57:51 Sessions 1 Manual Loads 0 Difficulty Rogue Special Mode None Game No. 425 Rogue 425 Adventurer 0 Explorer 0 Win Type - Total 0 Types 0/0/0/0/0/0/0/0/0/0 Lore% 46 Gallery% 44 Achievement% 31 Wizard Run 0 Options --------- Layout 2 ASCII 0 Keyboard 0 Movement Mouse Keybinds 0 Fullscreen 2 Font 24/Smallcaps Map View 50x44 Zoom Use 0% Tactical HUD 0 Map Filters NONE Filters NONE Steam 1 RUN: c75d783f-9c69-464d-9937-9ea886956aad